bitfinex-derivatives/quotes_SOLF0:USTF0_20250312
["timestamp","ask_amount","ask_price","bid_price","bid_amount"]
[1741782617494,232.2,130.12,129.87,0.05792002]
[1741782617699,357.61263346,130.11,129.87,0.05792002]
[1741782617998,1.53727901,130.1,129.77,232.2]
[1741782618199,1.53727901,130.1,129.71,232.2]
[1741782618500,2.87777707,130.1,129.98,0.0490259]
[1741782618693,2.87777707,130.1,129.73,1.33404854]
[1741782618888,1.53727901,130.1,130.03,0.05583752]
[1741782619095,1.53727901,130.1,129.74,1.33308862]
[1741782619399,232.2,130.11,129.6,232.2]
[1741782619598,1.41303779,130.1,129.61,1.33753502]
[1741782619801,232.2,130.11,129.61,1.33753502]
[1741782620102,1.33923417,130.18,129.61,1.33753502]
[1741782620693,0.05412429,129.91,129.88,0.05688994]
[1741782620897,0.05412429,129.91,129.45,36.71554009]
[1741782621094,231.74,129.9,129.46,1.33474957]
[1741782621301,233.15220968,129.89,129.45,36.71554009]
[1741782621500,233.15220968,129.88,129.52,9.17888502]
[1741782621696,231.74,129.87,129.52,9.17888502]
[1741782621893,0.05115906,129.71,129.68,0.05344177]
[1741782622099,231.68,130.05,129.68,0.05344177]
[1741782622294,1.4146283,130.04,129.68,0.05344177]
[1741782622803,1.33923417,130.18,129.68,0.05344177]
[1741782623000,1.41267273,130.17,129.68,0.05344177]
[1741782623196,1.41267273,130.17,129.64,1.33933515]
[1741782623606,1.41267273,130.17,129.63,231.68]
[1741782623906,1.41267273,130.17,129.64,1.3355977]
[1741782624092,0.05198835,129.92,129.89,0.05520829]
[1741782624295,1.41267273,130.17,129.89,0.05520829]
[1741782624497,1.33923417,130.18,129.77,231.68]
[1741782624697,1.33923417,130.18,129.68,231.68]
[1741782624902,1.33923417,130.18,129.63,15.431]
[1741782625100,1.33923417,130.18,129.54,23.1623]
[1741782625101,1.41330747,130.17,129.54,23.1623]
[1741782625393,355.68,130.16,129.48,124.0]
[1741782625598,355.68,130.16,129.42,23.1838]
[1741782625599,357.09431842,130.16,129.84,1.923e-05]
[1741782625796,30.7422,130.14,129.45,15.4525]
[1741782626004,1.41431842,130.13,129.46,1.34151554]
[1741782626197,1.41431842,130.12,129.35,231.44]
[1741782626398,23.0876,129.97,129.36,1.34483485]
[1741782626697,232.85431842,129.96,129.36,1.34483485]
[1741782626904,15.395,129.94,129.36,1.34483485]
[1741782627103,0.05010225,129.68,129.65,0.05888464]
[1741782627299,23.0656,130.09,129.65,0.05888464]
[1741782627502,23.0656,130.09,129.54,231.44]
[1741782627503,1.41363711,130.08,129.54,231.44]
[1741782627703,231.44,130.07,129.55,140.78543485]
[1741782627903,231.44,130.06,129.56,1.34483485]
[1741782628100,23.0234,130.33,129.56,1.34483485]
[1741782628296,231.44,130.29,129.56,1.34483485]
[1741782628501,1.41221273,130.17,129.61,23.1491]
[1741782628802,62.83945477,130.05,129.62,1.33409404]
[1741782629009,62.83945477,129.91,129.54,62.83945477]
[1741782629203,62.83945477,129.85,129.38,15.4606]
[1741782629401,231.36,129.97,129.39,1.34175621]
[1741782629598,1.34230777,130.04,129.7,62.83945477]
[1741782629802,1.34230777,130.04,129.71,62.83945477]
[1741782630001,15.3646,130.2,129.81,62.83945477]
[1741782630305,1.33990451,130.06,129.85,60.20548712]
[1741782630501,60.20548712,130.15,129.84,60.20548712]
[1741782630700,0.04994621,130.02,129.71,60.20548712]
[1741782630896,0.04994621,130.02,129.89,60.20548712]
[1741782631205,60.20548712,130.13,129.83,60.20548712]
[1741782631506,60.20548712,130.12,129.85,60.20548712]
[1741782632004,0.05732551,130.0,129.62,15.4313]
[1741782632197,60.20548712,129.97,129.58,231.24]
[1741782632396,231.24,130.1,129.76,60.20548712]
[1741782632602,16.09462765,130.12,129.86,60.20548712]
[1741782632603,0.72072765,130.12,129.86,60.20548712]
[1741782632803,60.20548712,130.14,129.71,60.20548712]
[1741782632804,231.24,130.2,129.91,60.20548712]
[1741782632998,60.20548712,130.27,129.99,60.20548712]
[1741782633204,60.20548712,130.27,130.04,0.05724353]
[1741782633205,0.05529976,130.06,130.04,0.05724353]
[1741782633503,0.05529976,130.06,129.94,7.6971]
[1741782633802,246.5892,130.33,129.92,60.20548712]
[1741782634009,291.44548712,130.33,130.05,60.20548712]
[1741782634214,231.24,130.33,130.05,60.20548712]
[1741782634408,231.24,130.33,129.96,231.24]
[1741782634409,1.41218526,130.19,130.02,60.20548712]
[1741782634710,0.05347472,130.13,130.11,0.05270722]
[1741782635203,60.20548712,130.24,130.11,0.05270722]
[1741782635404,2.3,130.24,130.05,35.0110802]
[1741782635599,7.687,130.12,130.05,30.3910802]
[1741782635801,60.20548712,130.25,130.1,38.47262825]
[1741782636003,60.20548712,130.3,130.05,30.3910802]
[1741782636206,60.20548712,130.3,130.11,38.47262825]
[1741782636512,231.1,130.42,130.18,38.47262825]
[1741782636699,60.20548712,130.46,130.22,38.47262825]
[1741782636898,231.1,130.52,130.26,38.47262825]
[1741782637111,231.1,130.52,130.21,60.20548712]
[1741782637411,60.20548712,130.39,130.24,38.47262825]
[1741782637603,60.20548712,130.39,130.26,38.47262825]
[1741782637812,60.20548712,130.39,130.22,38.47262825]
[1741782638009,0.05221089,130.36,130.12,110.1466203]
[1741782638307,62.50548712,130.39,130.12,114.76650371]
[1741782638308,60.20548712,130.39,130.12,114.76650371]
[1741782638511,60.20548712,130.36,130.12,110.1466203]
[1741782638713,1.33668786,130.38,130.25,38.47262825]
[1741782639012,1.33668786,130.38,130.12,110.1466203]
[1741782639013,60.20548712,130.36,130.23,110.1466203]
[1741782639209,60.20548712,130.32,130.23,110.1466203]
[1741782639406,0.05515442,130.33,130.23,110.1466203]
[1741782639610,60.20548712,130.35,130.23,110.1466203]
[1741782639805,1.33668786,130.38,130.23,110.1466203]
[1741782640509,60.20548712,130.32,130.25,45.2244203]
[1741782640808,0.05889837,130.32,129.95,60.20548712]
[1741782641012,0.05889837,130.32,130.27,0.05116585]
[1741782641310,60.20548712,130.33,130.02,60.20548712]
[1741782641511,60.20548712,130.28,130.02,18.41988341]
[1741782641709,60.20548712,130.23,130.04,76.8426941]
[1741782642014,60.20548712,130.14,129.85,60.20548712]
[1741782642209,60.20548712,130.14,129.9,303.95666331]
[1741782642411,60.20548712,130.08,129.9,303.95666331]
[1741782642612,60.20548712,130.13,129.95,76.8426941]
[1741782642815,60.25639197,130.03,129.9,285.5367799]
[1741782643205,60.20548712,130.03,129.9,285.5367799]
[1741782643412,230.8,130.18,129.9,285.5367799]
[1741782643614,60.20548712,130.15,129.99,285.5367799]
[1741782643910,230.8,130.18,129.99,285.5367799]
[1741782644114,0.05225395,130.08,130.06,0.05766381]
[1741782644514,2.3,130.08,129.99,285.5367799]
[1741782644710,124.0,130.21,130.02,76.8426941]
[1741782644711,60.20548712,130.21,130.02,76.8426941]
[1741782644915,60.20548712,130.07,129.99,285.5367799]
[1741782645410,60.20548712,130.07,129.91,128.70477763]
[1741782645411,233.12,130.07,129.91,128.70477763]
[1741782645615,60.20548712,129.98,129.65,88.11908852]
[1741782645821,60.20548712,129.93,129.78,38.45]
[1741782646017,0.05589417,130.0,129.66,1.54249575]
[1741782646213,60.20548712,129.9,129.8,0.05886819]
[1741782646413,0.05665731,129.84,129.66,1.54249575]
[1741782646619,60.20548712,129.75,129.66,1.54249575]
[1741782646811,60.20548712,129.8,129.66,1.54249575]
[1741782647014,60.20548712,129.93,129.66,1.54249575]
[1741782647215,60.20548712,129.83,129.67,38.45]
[1741782647417,60.20548712,129.8,129.68,1.54225786]
[1741782647613,60.20548712,129.75,129.4,230.9]
[1741782647813,0.05456929,129.76,129.74,0.0571674]
[1741782648011,60.20548712,130.02,129.75,38.45]
[1741782648211,60.20548712,129.95,129.75,56.86988341]
[1741782648415,230.9,130.05,129.69,60.20548712]
[1741782648612,230.9,130.16,129.9,38.45]
[1741782648817,60.20548712,130.11,129.92,38.45]
[1741782649016,60.20548712,130.1,129.93,38.45]
[1741782649217,230.9,130.16,129.91,38.45]
[1741782649418,0.05154323,130.03,130.0,0.05871372]
[1741782649620,0.05154323,130.03,130.0,0.00414443]
[1741782649920,60.20548712,130.02,129.71,60.20548712]
[1741782650122,60.20548712,130.07,129.86,38.45]
[1741782650315,60.20548712,130.07,129.84,38.45]
[1741782650517,60.20548712,130.02,129.79,38.45]
[1741782650723,60.20548712,130.02,129.72,42.75426629]
[1741782650724,60.20548712,129.98,129.72,18.41988341]
[1741782650917,60.20548712,129.95,129.76,38.45]
[1741782651119,231.04,129.97,129.85,38.45]
[1741782651418,0.05828486,129.86,129.84,0.05656612]
[1741782651619,23.63,130.01,129.97,309.09417691]
[1741782651821,23.63,130.01,129.72,77.37038651]
[1741782652013,23.63,130.01,129.77,7.69014725]
[1741782652217,60.20548712,129.9,129.77,7.69014725]
[1741782652521,60.20548712,129.85,129.72,77.37038651]
[1741782652721,60.20548712,129.8,129.51,60.20548712]
[1741782652914,231.08,129.79,129.65,7.69014725]
[1741782653114,230.98769611,129.79,129.62,7.69014725]
[1741782653322,230.98769611,129.79,129.64,0.05440708]
[1741782653621,230.98769611,129.79,129.63,7.69014725]
[1741782653622,0.05680884,129.72,129.63,7.69014725]
[1741782653823,60.20548712,129.68,129.22,231.08]
[1741782654021,23.63,129.74,129.49,153.84]
[1741782654217,60.20548712,129.69,129.28,117.81420559]
[1741782654421,60.20548712,129.71,129.45,153.84]
[1741782654822,60.20548712,129.77,129.57,153.84]
[1741782655020,60.20548712,129.77,129.55,153.84]
[1741782655216,60.20548712,129.74,129.49,18.41988341]
[1741782655424,60.20548712,129.69,129.49,172.25988341]
[1741782655624,231.28,129.84,129.5,21.82430568]
[1741782655826,60.20548712,129.8,129.58,0.0572467]
[1741782656025,60.20548712,129.75,129.58,0.0572467]
[1741782656217,60.20548712,129.65,129.43,124.08226785]
[1741782656527,60.20548712,129.65,129.44,173.90486231]
[1741782656730,60.20548712,129.59,129.44,10.48439668]
[1741782656924,60.20548712,129.76,129.52,153.84]
[1741782657221,60.20548712,129.79,129.51,60.20548712]
[1741782657422,60.20548712,129.79,129.6,153.84]
[1741782657423,1.5410695,129.78,129.6,153.84]
[1741782657622,1.5410695,129.78,129.53,9.56322454]
[1741782657623,1.5410695,129.78,129.67,153.84]
[1741782657817,1.5410695,129.78,129.7,153.84]
[1741782658020,231.28,129.93,129.74,153.84]
[1741782658222,60.20548712,129.9,129.68,0.05096599]
[1741782658433,231.28,129.93,129.72,153.84]
[1741782658726,231.28,129.93,129.73,163.25038932]
[1741782658916,231.34,130.02,129.78,0.05805919]
[1741782659119,60.20548712,129.98,129.78,0.05805919]
[1741782659318,231.34,130.02,129.8,153.84]
[1741782659518,60.20548712,129.9,129.7,153.84]
[1741782659722,231.34,129.97,129.82,153.84]
[1741782659929,0.05684969,129.92,129.9,0.05054682]
[1741782660229,0.05684969,129.92,129.76,60.20548712]
[1741782660528,231.34,130.29,129.91,60.20548712]
[1741782660724,291.54548712,130.29,130.06,153.84]
[1741782660924,291.54548712,130.29,130.02,60.20548712]
[1741782661130,291.54548712,130.29,130.01,60.20548712]
[1741782661322,231.34,130.29,130.06,60.20548712]
[1741782661518,231.34,130.29,129.93,124.0]
[1741782661519,231.34,130.29,130.18,153.84]
[1741782661725,231.34,130.29,130.14,0.05499763]
[1741782661921,0.0496212,130.19,130.14,172.25988341]
[1741782662233,0.0496212,130.19,130.14,18.41988341]
[1741782662535,60.20548712,130.24,129.97,60.20548712]
[1741782662725,0.05345605,130.18,130.09,153.84]
[1741782662924,60.20548712,130.35,130.17,153.84]
[1741782663226,0.95857697,130.49,130.12,60.20548712]
[1741782663227,60.20548712,130.4,130.12,60.20548712]
[1741782663428,231.22,130.42,130.17,60.20548712]
[1741782663630,60.20548712,130.4,130.15,231.22]
[1741782663832,60.20548712,130.4,130.26,153.84]
[1741782664028,231.22,130.42,130.18,60.20548712]
[1741782664230,231.22,130.42,130.28,153.84]
[1741782664532,291.42548712,130.42,130.27,153.84]
[1741782664835,60.20548712,130.47,130.3,153.84]
[1741782665025,1.06970278,130.57,130.05,60.20548712]
[1741782665026,230.96,130.71,130.31,60.20548712]
[1741782665227,60.20548712,130.65,130.46,153.84]
[1741782665428,60.28203336,130.64,130.36,60.20548712]
[1741782665629,60.20548712,130.59,130.45,153.84]
[1741782665825,60.20548712,130.54,130.25,60.20548712]
[1741782666037,60.20548712,130.49,130.32,153.84]
[1741782666231,60.20548712,130.49,130.25,18.41988341]
[1741782666232,60.20548712,130.49,130.28,153.84]
[1741782666536,60.20548712,130.56,130.28,153.84]
[1741782666733,60.20548712,130.52,130.24,60.20548712]
[1741782666933,60.20548712,130.49,130.25,153.84]
[1741782667231,60.20548712,130.39,130.19,153.84]
[1741782667437,60.20548712,130.38,130.1,60.20548712]
[1741782667635,60.20548712,130.38,130.16,153.84]
[1741782667832,60.20548712,130.28,130.07,254.43064928]
[1741782668037,60.20548712,130.33,130.17,153.84]
[1741782668234,230.74,130.37,130.11,60.20548712]
[1741782668626,60.20548712,130.33,130.11,60.20548712]
[1741782668931,0.05222159,130.25,130.23,0.05774614]
[1741782669138,60.20548712,130.36,130.23,0.05774614]
[1741782669338,60.20548712,130.25,130.05,30.22505751]
[1741782669539,60.20548712,130.19,130.05,30.22505751]
[1741782669832,230.74,130.35,130.05,30.22505751]
[1741782670029,230.74,130.35,130.18,153.84]
[1741782670225,230.74,130.49,130.13,60.20548712]
[1741782670430,60.20548712,130.38,130.22,153.84]
[1741782670726,0.05033959,130.28,130.25,0.05199252]
[1741782670931,230.7,130.49,130.13,18.41988341]
[1741782671131,1.39752084,130.48,130.21,153.84]
[1741782671430,60.20548712,130.44,130.29,153.84]
[1741782671626,60.20548712,130.56,130.42,151.17906424]
[1741782671827,60.20548712,130.56,130.3,60.20548712]
[1741782672030,60.20548712,130.56,130.26,230.7]
[1741782672337,60.20548712,130.61,130.51,151.17906424]
[1741782672530,60.20548712,130.61,130.26,230.7]
[1741782672531,60.20548712,130.56,130.42,151.17906424]
[1741782672838,60.20548712,130.46,130.32,151.17906424]
[1741782673137,230.7,130.45,130.26,18.41988341]
[1741782673340,60.20548712,130.46,130.35,151.17906424]
[1741782673634,60.20548712,130.59,130.45,151.17906424]
[1741782673840,60.20548712,130.59,130.34,0.05141925]
[1741782674140,60.20548712,130.49,130.35,151.17906424]
[1741782674338,60.20548712,130.44,130.12,230.48]
[1741782674639,0.51281074,130.67,130.21,60.20548712]
[1741782674839,230.48,130.63,130.38,151.17906424]
[1741782675037,60.20548712,130.58,130.26,230.48]
[1741782675337,0.05155969,130.44,130.26,18.41988341]
[1741782675635,60.20548712,130.41,130.26,18.41988341]
[1741782676031,60.20548712,130.36,130.09,60.20548712]
[1741782676232,60.20548712,130.31,130.17,151.17906424]
[1741782676437,230.42,130.3,130.08,18.41988341]
[1741782676741,60.20548712,130.41,130.28,151.17906424]
[1741782676937,60.20548712,130.41,130.31,151.17906424]
[1741782677141,60.20548712,130.41,130.23,0.05528831]
[1741782677142,60.20548712,130.41,130.23,18.41988341]
[1741782677339,60.20548712,130.41,130.17,230.42]
[1741782677539,0.04915467,130.37,130.35,0.05138201]
[1741782677836,0.04915467,130.37,130.17,230.42]
[1741782678036,60.20548712,130.36,130.24,151.17906424]
[1741782678341,60.20548712,130.31,130.17,18.41988341]
[1741782678538,60.20548712,130.31,130.05,60.20548712]
[1741782678739,60.20548712,130.26,130.17,151.17906424]
[1741782678942,60.20548712,130.21,130.03,18.41988341]
[1741782679140,230.42,130.2,130.1,151.17906424]
[1741782679442,60.20548712,130.21,130.13,151.17906424]
[1741782679647,60.20548712,130.21,130.14,0.05348045]
[1741782679943,60.20548712,130.16,129.88,320.87054463]
[1741782680135,0.05123971,130.18,130.02,151.17906424]
[1741782680335,60.20548712,130.26,130.0,60.20548712]
[1741782680535,60.20548712,130.31,130.01,231.77086739]
[1741782680847,60.20548712,130.21,130.11,151.17906424]
[1741782681038,231.98,130.36,130.07,230.44]
[1741782681243,61.74548712,130.36,130.24,151.17906424]
[1741782681438,61.74548712,130.36,130.21,151.17906424]
[1741782681944,60.20548712,130.31,130.06,60.20548712]
[1741782682147,60.20548712,130.31,130.22,151.17906424]
[1741782682345,60.20548712,130.31,130.17,151.17906424]
[1741782682648,60.20548712,130.23,130.11,151.17906424]
[1741782682843,290.62548712,130.23,130.09,151.17906424]
[1741782683146,60.25707134,130.18,129.91,230.42]
[1741782683344,60.20548712,130.13,129.92,1.33451316]
[1741782683647,60.20548712,130.08,129.93,151.17906424]
[1741782683847,60.20548712,130.08,129.9,18.41988341]
[1741782683848,60.20548712,130.04,129.8,30.22505751]
[1741782684141,60.20548712,130.08,129.98,151.17906424]
[1741782684343,60.20548712,130.08,129.96,151.17906424]
[1741782684545,60.20548712,130.08,129.91,0.05145958]
[1741782684842,37.28,130.12,129.86,112.39582338]
[1741782684843,60.20548712,129.95,129.86,112.39582338]
[1741782685041,230.42,129.94,129.86,112.39582338]
[1741782685247,60.20548712,129.91,129.84,124.08226785]
[1741782685441,7.6997,129.9,129.84,124.08226785]
[1741782685638,0.05664186,129.91,129.89,0.05857446]
[1741782685836,60.20548712,130.03,129.9,151.17906424]
[1741782686046,60.20548712,130.03,129.89,151.17906424]
[1741782686242,230.58,130.09,129.86,151.17906424]
[1741782686441,60.20548712,130.0,129.84,142.50215126]
[1741782686642,60.20548712,129.85,129.46,230.58]
[1741782686848,60.20548712,129.81,129.54,70.42101478]
[1741782687043,60.20548712,129.81,129.72,137.47526424]
[1741782687247,0.05857224,129.7,129.69,137.47526424]
[1741782687443,230.58,129.82,129.59,62.52548712]
[1741782687640,60.20548712,129.92,129.64,60.20548712]
[1741782687841,60.20548712,129.92,129.68,60.20548712]
[1741782688041,60.20548712,129.92,129.8,137.47526424]
[1741782688250,60.20548712,130.01,129.88,137.47526424]
[1741782688441,290.78548712,130.01,129.87,137.47526424]
[1741782688751,0.05584701,129.96,129.93,0.05861501]
[1741782689142,60.20548712,130.06,129.82,60.20548712]
[1741782689344,230.8,130.1,129.99,137.47526424]
[1741782689545,230.8,130.1,130.03,137.47526424]
[1741782689953,230.8,130.1,129.84,230.8]
[1741782690251,40.27499973,130.01,129.86,60.20548712]
[1741782690452,40.27499973,130.01,129.91,60.20548712]
[1741782690645,112.46812409,130.04,130.03,7.6919]
[1741782690847,60.20548712,130.26,130.02,60.20548712]
[1741782691048,46.16991695,130.07,129.95,60.25821514]
[1741782691253,74.97873873,130.09,129.95,60.25821514]
[1741782691454,7.74211665,130.07,129.95,60.20548712]
[1741782691752,230.82,130.17,130.01,0.05914292]
[1741782691954,46.16991695,130.05,130.01,0.05914292]
[1741782692142,0.04924055,130.02,129.95,60.20548712]
[1741782692346,44.91,130.12,130.0,60.20548712]
[1741782692544,33.08475708,130.12,130.06,60.20548712]
[1741782692741,74.97873873,130.2,130.1,60.20548712]
[1741782692944,74.97873873,130.2,130.02,230.82]
[1741782693141,7.68991695,130.17,130.06,60.20548712]
[1741782693347,74.97873873,130.2,130.06,60.20548712]
[1741782693548,74.97873873,130.2,130.14,60.20548712]
[1741782693848,10.69,130.36,130.24,7.6795]
[1741782694047,10.69,130.36,130.22,60.20548712]
[1741782694252,10.69,130.36,130.05,62.50548712]
[1741782694253,10.69,130.36,130.26,60.20548712]
[1741782694456,10.69,130.36,130.26,290.92548712]
[1741782694639,10.69,130.36,130.3,60.20548712]
[1741782694846,7.133e-05,130.36,130.3,60.20548712]
[1741782695146,230.72,130.56,130.34,60.20548712]
[1741782695345,7.68991695,130.44,130.32,0.05504035]
[1741782695652,6.37,130.55,130.42,60.20548712]
[1741782695855,6.37,130.55,130.49,60.20548712]
[1741782696150,6.37,130.55,130.22,240.82194848]
[1741782696151,7.68991695,130.5,130.23,1384.42]
[1741782696349,46.16991695,130.48,130.32,60.20548712]
[1741782696550,7.68991695,130.45,130.32,60.20548712]
[1741782696752,7.68991695,130.42,130.32,60.20548712]
[1741782696959,7.68991695,130.43,130.32,60.20548712]
[1741782697254,0.27,130.47,130.4,60.20548712]
[1741782697446,7.68991695,130.44,130.36,60.20548712]
[1741782697643,38.48,130.37,130.36,0.05575085]
[1741782697852,7.68991695,130.37,130.36,0.05575085]
[1741782698147,0.27,130.47,130.36,2.3]
[1741782698351,0.27,130.47,130.36,60.20548712]
[1741782698554,0.27,130.47,130.35,0.05072577]
[1741782698750,7.68991695,130.39,130.31,73.03503473]
[1741782698955,0.21569781,130.47,130.46,122.53925824]
[1741782699156,18.69569781,130.47,130.46,122.53925824]
[1741782699452,53.54984586,130.47,130.46,122.53925824]
[1741782699660,7.6623,130.54,130.46,122.53925824]
[1741782699952,0.05622387,130.48,130.46,122.53925824]
[1741782700450,7.9,130.55,130.45,6.63954861]
[1741782700646,0.05899163,130.48,130.46,0.05365659]
[1741782701050,2.3,130.48,130.43,66.17745269]
[1741782701247,7.6647,130.5,130.48,66.17745269]
[1741782701450,49.34354745,130.54,130.48,66.17745269]
[1741782701652,0.26,130.55,130.48,66.17745269]
[1741782702253,0.26,130.55,130.44,10.18215928]
[1741782702557,0.05051347,130.53,130.5,0.05652272]
[1741782703052,60.20548712,130.51,130.4,204.23209707]
[1741782703359,60.20548712,130.46,130.3,129.1108619]
[1741782703552,60.20548712,130.53,130.35,0.05652272]
[1741782703752,0.23,130.46,130.36,1.53421294]
[1741782704149,0.05349446,130.42,130.37,230.26]
[1741782704451,60.20548712,130.61,130.4,0.05240559]
[1741782704760,60.20548712,130.61,130.44,0.05652272]
[1741782705051,60.20548712,130.61,130.46,0.05652272]
[1741782705254,60.20548712,130.65,130.5,0.05652272]
[1741782705553,0.05814966,130.55,130.52,0.05189718]
[1741782705758,15.2876,130.85,130.54,0.05652272]
[1741782705759,60.20548712,130.7,130.54,0.05652272]
[1741782705951,60.20548712,130.76,130.48,230.26]
[1741782706152,1.52963671,130.75,130.55,60.20548712]
[1741782706351,7.6525,130.7,130.56,7.6606]
[1741782706650,1.52963671,130.75,130.61,0.05652272]
[1741782707056,1.52963671,130.75,130.63,60.20548712]
[1741782707252,230.16,130.87,130.71,0.05652272]
[1741782707453,7.646,130.82,130.71,0.05652272]
[1741782707653,230.16,130.87,130.62,60.20548712]
[1741782707853,230.16,130.87,130.74,0.05652272]
[1741782708046,230.16,130.87,130.75,0.05652272]
[1741782708253,0.05260995,130.82,130.79,0.05448497]
[1741782708450,60.20548712,130.93,130.79,0.05448497]
[1741782708663,60.20548712,130.93,130.8,0.05652272]
[1741782708855,60.20548712,130.93,130.79,0.05652272]
[1741782709055,230.16,130.94,130.81,0.05652272]
[1741782709658,230.16,130.94,130.7,290.12548712]
[1741782709659,0.05796059,130.89,130.86,0.05774445]
[1741782709858,60.26344771,130.89,130.74,0.05652272]
[1741782710163,60.20548712,130.85,130.7,0.05652272]
[1741782710353,60.20548712,130.81,130.67,0.05652272]
[1741782710558,60.20548712,130.77,130.54,60.20548712]
[1741782710757,60.20548712,130.84,130.62,60.20548712]
[1741782710958,60.20548712,130.84,130.69,0.05652272]
[1741782711158,290.12548712,130.88,130.73,0.05652272]
[1741782711356,0.05345529,130.78,130.74,0.05652272]
[1741782711552,290.12548712,130.88,130.75,0.05652272]
[1741782711860,60.20548712,130.92,130.79,0.05036102]
[1741782712058,229.92,130.96,130.82,0.05652272]
[1741782712263,60.20548712,130.87,130.61,60.20548712]
[1741782712466,60.20548712,130.83,130.7,0.05652272]
[1741782712668,60.20548712,130.83,130.57,229.92]
[1741782712669,60.20548712,130.79,130.67,0.05652272]
[1741782712866,60.20548712,130.79,130.66,0.05652272]
[1741782713067,7.6524,130.71,130.62,0.05652272]
[1741782713361,229.8,130.74,130.54,80.81012376]
[1741782713570,0.05562778,130.68,130.65,0.05563168]
[1741782713865,229.8,130.86,130.67,0.05652272]
[1741782714068,1.3929146,130.85,130.74,0.05652272]
[1741782714263,231.1929146,130.9,130.73,0.05652272]
[1741782714559,60.20548712,130.79,130.59,237.4583]
[1741782714763,60.20548712,130.79,130.66,0.05652272]
[1741782714955,229.8,130.8,130.45,60.20548712]
[1741782714956,1608.7,130.8,130.45,60.20548712]
[1741782715159,60.20548712,130.71,130.45,60.20548712]
[1741782715362,0.0521029,130.74,130.7,0.05659635]
[1741782715566,60.20548712,130.85,130.69,0.05659635]
[1741782715754,60.20548712,130.85,130.73,0.05659635]
[1741782715961,60.20548712,130.81,130.64,229.74]
[1741782716156,60.20548712,130.77,130.69,0.05659635]
[1741782716355,60.20548712,130.77,130.65,1.5308075]
[1741782716560,60.20548712,130.81,130.7,0.05659635]
[1741782716965,0.05184785,130.72,130.7,0.0543373]
[1741782717171,32.34,130.8,130.65,9.1856075]
[1741782717563,124.0,131.0,130.79,0.05659635]
[1741782717763,60.20548712,130.93,130.79,0.05659635]
[1741782718069,60.20548712,130.93,130.75,229.74]
[1741782718259,0.05461397,130.87,130.79,0.05659635]
[1741782718463,0.05461397,130.87,130.85,0.04856175]
[1741782718663,60.20548712,130.97,130.74,60.20548712]
[1741782718871,60.20548712,130.93,130.82,0.05659635]
[1741782719065,60.20548712,130.93,130.79,0.05659635]
[1741782719369,60.20548712,130.89,130.75,0.05659635]
[1741782719567,60.20548712,130.85,130.72,0.05659635]
[1741782719763,60.20548712,130.85,130.65,1.5308075]
[1741782719764,289.84548712,130.94,130.8,0.05659635]
[1741782719964,0.05136853,130.83,130.81,0.05011199]
[1741782720165,17.18,130.88,130.81,0.10670834]
[1741782720361,17.18,130.88,130.83,0.05659635]
[1741782720665,17.18,130.88,130.76,60.20548712]
[1741782720866,17.18,130.88,130.83,0.05659635]
[1741782721068,17.18,130.88,130.84,0.05659635]
[1741782721266,17.18,130.88,130.85,0.05659635]
[1741782721569,0.053631,130.87,130.77,7.6483]
[1741782721762,0.053631,130.87,130.82,0.05659635]
[1741782721957,17.18,130.88,130.78,0.05659635]
[1741782722158,17.18,130.88,130.73,0.05659635]
[1741782722358,17.18,130.88,130.79,0.05659635]
[1741782722664,17.18,130.88,130.65,1.5308075]
[1741782722665,60.20548712,130.87,130.65,1.5308075]
[1741782722865,0.05269623,130.85,130.65,1.5308075]
[1741782723070,0.05269623,130.85,130.71,60.20548712]
[1741782723270,17.18,130.88,130.83,0.05659635]
[1741782723463,229.56,130.96,130.86,0.05659635]
[1741782723669,60.20548712,131.04,130.92,0.05659635]
[1741782723864,60.20548712,131.0,130.9,0.05659635]
[1741782724066,60.20548712,130.96,130.72,1.52998776]
[1741782724265,0.05365667,130.99,130.88,0.05659635]
[1741782724467,83.31548712,130.96,130.94,0.05860614]
[1741782724671,23.11,130.91,130.72,1.52998776]
[1741782724875,229.60945584,130.95,130.72,1.52998776]
[1741782724876,83.31548712,130.87,130.72,1.52998776]
[1741782725175,39.58078805,130.83,130.72,1.58658411]
[1741782725376,229.52,130.82,130.72,1.52998776]
[1741782725568,229.52,130.9,130.72,1.52998776]
[1741782725765,60.20548712,130.88,130.76,0.05659635]
[1741782725965,60.20548712,130.95,130.77,0.05659635]
[1741782726279,50.55924742,130.98,130.88,0.05659635]
[1741782726469,1377.12,131.13,130.79,50.55924742]